[Event "Open NK Rapid 2025 bord 26-50"]
[Site "Helmond, Netherlands"]
[Date "2025.05.03"]
[Round "9.3"]
[White "Klein, Ron"]
[Black "Ponomarev, Ivan"]
[Result "0-1"]
[TimeControl "15 min +5 sec increment"]
[WhiteFideId "1014668"]
[BlackFideId "34411003"]
[WhiteElo "2014"]
[BlackElo "1857"]

1. d4 {[%clk 00:15:09]} {[%emt 00:00:01]} Nf6 {[%clk 00:15:07]} {[%emt
00:00:03]} 2. Nf3 {[%clk 00:15:11]} {[%emt 00:00:02]} g6 {[%clk 00:15:10]}
{[%emt 00:00:02]} 3. Bg5 {[%clk 00:15:14]} {[%emt 00:00:02]} Bg7 {[%clk
00:15:13]} {[%emt 00:00:02]} 4. e3 {[%clk 00:15:16]} {[%emt 00:00:03]} O-O
{[%clk 00:15:10]} {[%emt 00:00:08]} 5. Be2 {[%clk 00:15:17]} {[%emt 00:00:04]}
d5 {[%clk 00:14:08]} {[%emt 00:01:07]} 6. O-O {[%clk 00:15:15]} {[%emt
00:00:07]} c5 {[%clk 00:13:06]} {[%emt 00:01:07]} 7. c3 {[%clk 00:15:15]}
{[%emt 00:00:05]} cxd4 {[%clk 00:12:48]} {[%emt 00:00:23]} 8. exd4 {[%clk
00:15:18]} {[%emt 00:00:02]} Nc6 {[%clk 00:12:49]} {[%emt 00:00:04]} 9. Nbd2
{[%clk 00:15:18]} {[%emt 00:00:05]} a6 {[%clk 00:12:10]} {[%emt 00:00:44]} 10.
Re1 {[%clk 00:15:17]} {[%emt 00:00:05]} b5 {[%clk 00:11:58]} {[%emt 00:00:17]}
11. Ne5 {[%clk 00:14:43]} {[%emt 00:00:40]} Nxe5 {[%clk 00:10:31]} {[%emt
00:01:33]} 12. dxe5 {[%clk 00:14:45]} {[%emt 00:00:02]} Nd7 {[%clk 00:10:24]}
{[%emt 00:00:12]} 13. f4 {[%clk 00:14:33]} {[%emt 00:00:18]} f6 {[%clk
00:10:13]} {[%emt 00:00:16]} 14. exf6 {[%clk 00:14:33]} {[%emt 00:00:03]} Nxf6
{[%clk 00:09:53]} {[%emt 00:00:26]} 15. Qb3 {[%clk 00:14:16]} {[%emt 00:00:22]}
e6 {[%clk 00:09:01]} {[%emt 00:00:57]} 16. a4 {[%clk 00:14:03]} {[%emt
00:00:18]} Qb6+ {[%clk 00:07:48]} {[%emt 00:01:19]} 17. Kh1 {[%clk 00:14:00]}
{[%emt 00:00:07]} Bd7 {[%clk 00:07:50]} {[%emt 00:00:04]} 18. axb5 {[%clk
00:13:55]} {[%emt 00:00:09]} axb5 {[%clk 00:07:53]} {[%emt 00:00:02]} 19. Bf3
{[%clk 00:13:28]} {[%emt 00:00:32]} h6 {[%clk 00:06:23]} {[%emt 00:01:35]} 20.
Bxf6 {[%clk 00:12:50]} {[%emt 00:00:43]} Bxf6 {[%clk 00:06:26]} {[%emt
00:00:02]} 21. Rxa8 {[%clk 00:12:40]} {[%emt 00:00:14]} Rxa8 {[%clk 00:06:29]}
{[%emt 00:00:04]} 22. Bxd5 {[%clk 00:12:21]} {[%emt 00:00:23]} Re8 {[%clk
00:04:05]} {[%emt 00:02:29]} 23. Bf3 {[%clk 00:12:12]} {[%emt 00:00:14]} Qd6
{[%clk 00:03:39]} {[%emt 00:00:32]} 24. g3 {[%clk 00:11:53]} {[%emt 00:00:24]}
Qxd2 {[%clk 00:03:25]} {[%emt 00:00:19]} 0-1

[Event "Open NK Rapid 2025 bord 26-50"]
[Site "Helmond, Netherlands"]
[Date "2025.05.03"]
[Round "9.4"]
[White "Den Heijer, Rolinde"]
[Black "Rohatgi, Kushagra"]
[Result "1-0"]
[TimeControl "15 min +5 sec increment"]
[WhiteFideId "1068300"]
[BlackFideId "34603212"]
[WhiteElo "1991"]
[BlackElo "1774"]

1. e4 {[%clk 00:15:09]} c6 {[%clk 00:15:08]} {[%emt 00:00:03]} 2. d4 {[%clk
00:15:12]} d5 {[%clk 00:15:12]} {[%emt 00:00:01]} 3. exd5 {[%clk 00:15:16]}
{[%emt 00:00:01]} cxd5 {[%clk 00:15:16]} {[%emt 00:00:01]} 4. c4 {[%clk
00:15:19]} {[%emt 00:00:01]} e6 {[%clk 00:15:17]} {[%emt 00:00:04]} 5. Nc3
{[%clk 00:15:19]} {[%emt 00:00:05]} Nf6 {[%clk 00:15:20]} {[%emt 00:00:02]} 6.
Nf3 {[%clk 00:15:22]} {[%emt 00:00:02]} Be7 {[%clk 00:15:23]} {[%emt 00:00:02]}
7. cxd5 {[%clk 00:15:24]} {[%emt 00:00:03]} Nxd5 {[%clk 00:15:26]} {[%emt
00:00:02]} 8. Bd3 {[%clk 00:15:26]} {[%emt 00:00:04]} Nc6 {[%clk 00:15:27]}
{[%emt 00:00:04]} 9. O-O {[%clk 00:15:24]} {[%emt 00:00:06]} O-O {[%clk
00:15:25]} {[%emt 00:00:07]} 10. Bd2 {[%clk 00:14:42]} {[%emt 00:00:47]} b6
{[%clk 00:15:22]} {[%emt 00:00:09]} 11. Rc1 {[%clk 00:14:43]} {[%emt 00:00:04]}
Bb7 {[%clk 00:15:24]} {[%emt 00:00:02]} 12. Bb1 {[%clk 00:14:42]} {[%emt
00:00:06]} Rc8 {[%clk 00:15:08]} {[%emt 00:00:21]} 13. Qc2 {[%clk 00:14:15]}
{[%emt 00:00:33]} Nf6 {[%clk 00:14:48]} {[%emt 00:00:25]} 14. Bg5 {[%clk
00:14:02]} {[%emt 00:00:18]} Nb4 {[%emt 00:00:37]} 15. Qe2 {[%clk 00:13:56]}
Ba6 {[%clk 00:14:17]} {[%emt 00:00:15]} 16. Qe3 {[%clk 00:13:40]} {[%emt
00:00:21]} Bxf1 {[%clk 00:14:14]} {[%emt 00:00:08]} 17. Rxf1 {[%clk 00:13:43]}
{[%emt 00:00:02]} h6 {[%clk 00:12:53]} {[%emt 00:01:26]} 18. Bxf6 {[%clk
00:12:18]} {[%emt 00:01:30]} Bxf6 {[%clk 00:12:36]} {[%emt 00:00:21]} 19. Ne4
{[%clk 00:11:25]} {[%emt 00:00:58]} Qe7 {[%clk 00:11:10]} {[%emt 00:01:31]} 20.
Ne5 {[%clk 00:10:19]} {[%emt 00:01:11]} Rfd8 {[%clk 00:10:09]} {[%emt
00:01:06]} 21. a3 {[%clk 00:09:57]} {[%emt 00:00:27]} Bxe5 {[%clk 00:09:15]}
{[%emt 00:00:59]} 22. dxe5 {[%clk 00:09:49]} {[%emt 00:00:14]} Nc2 {[%emt
00:01:33]} 23. Qf4 {[%clk 00:08:34]} Nd4 {[%clk 00:08:37]} {[%emt 00:00:34]} 24.
Kh1 {[%clk 00:07:53]} {[%emt 00:00:47]} Nf5 {[%clk 00:08:27]} {[%emt 00:00:15]}
25. g4 {[%clk 00:07:11]} {[%emt 00:00:46]} Nh4 {[%clk 00:08:02]} {[%emt
00:00:30]} 26. Nd6 {[%clk 00:05:57]} {[%emt 00:01:19]} Rc5 {[%clk 00:07:34]}
{[%emt 00:00:33]} 27. Qe4 {[%clk 00:05:15]} {[%emt 00:00:48]} Ng6 {[%clk
00:07:31]} {[%emt 00:00:08]} 28. f4 {[%clk 00:05:10]} {[%emt 00:00:09]} Rf8
{[%clk 00:07:01]} {[%emt 00:00:35]} 29. Qg2 {[%clk 00:04:08]} {[%emt 00:01:07]}
Nh4 {[%clk 00:06:30]} {[%emt 00:00:36]} 30. Qg3 {[%clk 00:03:47]} {[%emt
00:00:26]} Rd8 {[%clk 00:06:01]} {[%emt 00:00:34]} 31. g5 {[%clk 00:03:19]}
{[%emt 00:00:33]} hxg5 {[%clk 00:04:59]} {[%emt 00:01:07]} 32. fxg5 {[%clk
00:02:40]} {[%emt 00:00:44]} Nf5 {[%clk 00:04:47]} {[%emt 00:00:17]} 33. Bxf5
{[%clk 00:01:57]} {[%emt 00:00:48]} exf5 {[%clk 00:04:27]} {[%emt 00:00:25]} 34.
Rxf5 {[%clk 00:01:55]} {[%emt 00:00:07]} Rf8 {[%clk 00:03:43]} {[%emt
00:00:49]} 35. g6 {[%clk 00:01:00]} {[%emt 00:01:00]} fxg6 {[%clk 00:02:27]}
{[%emt 00:01:22]} 36. Qb3+ {[%clk 00:00:50]} {[%emt 00:00:15]} Kh7 {[%clk
00:02:15]} {[%emt 00:00:17]} 37. Qh3+ {[%clk 00:00:48]} {[%emt 00:00:06]} Kg8
{[%clk 00:02:15]} {[%emt 00:00:06]} 38. Qb3+ {[%clk 00:00:21]} {[%emt
00:00:32]} Kh7 {[%clk 00:01:52]} {[%emt 00:00:28]} 39. Qh3+ {[%clk 00:00:23]}
{[%emt 00:00:03]} Kg8 {[%clk 00:01:56]} 40. Rxf8+ {[%clk 00:00:18]} {[%emt
00:00:09]} Qxf8 {[%clk 00:01:49]} {[%emt 00:00:12]} 41. Qe6+ {[%clk 00:00:21]}
{[%emt 00:00:03]} Kh7 {[%clk 00:01:40]} {[%emt 00:00:14]} 42. Qh3+ {[%clk
00:00:14]} {[%emt 00:00:12]} Kg8 {[%clk 00:01:43]} {[%emt 00:00:02]} 43. Qe6+
{[%clk 00:00:17]} {[%emt 00:00:02]} Kh8 {[%clk 00:01:20]} {[%emt 00:00:27]} 44.
Nf7+ {[%clk 00:00:06]} {[%emt 00:00:16]} Kh7 {[%clk 00:01:06]} {[%emt
00:00:20]} 45. Ng5+ {[%clk 00:00:07]} {[%emt 00:00:04]} Kh6 {[%clk 00:00:58]}
{[%emt 00:00:13]} 46. Nf7+ {[%clk 00:00:11]} {[%emt 00:00:01]} Kh7 {[%clk
00:00:55]} {[%emt 00:00:08]} 47. Qh3+ {[%clk 00:00:08]} {[%emt 00:00:07]} Kg8
{[%clk 00:00:55]} {[%emt 00:00:06]} 48. e6 {[%clk 00:00:10]} {[%emt 00:00:03]}
Qa8+ {[%clk 00:00:34]} {[%emt 00:00:26]} 49. Kg1 {[%clk 00:00:12]} {[%emt
00:00:03]} Rc1+ {[%clk 00:00:32]} {[%emt 00:00:07]} 50. Kf2 {[%clk 00:00:16]}
{[%emt 00:00:01]} Rc2+ {[%clk 00:00:14]} {[%emt 00:00:23]} 51. Ke3 {[%clk
00:00:20]} 1-0

[Event "Open NK Rapid 2025 bord 26-50"]
[Site "Helmond, Netherlands"]
[Date "2025.05.03"]
[Round "9.5"]
[White "Neuwald, Johannes"]
[Black "Fransen, Jean-Paul"]
[Result "0-1"]
[TimeControl "15 min +5 sec increment"]
[WhiteFideId "34683240"]
[BlackFideId "40101487"]
[WhiteElo "1839"]
[BlackElo "1964"]

1. a3 {[%clk 00:15:10]} g6 {[%clk 00:15:08]} {[%emt 00:00:02]} 2. h3 {[%clk
00:15:14]} {[%emt 00:00:01]} Bg7 {[%clk 00:15:12]} {[%emt 00:00:01]} 3. g3
{[%clk 00:15:18]} Nf6 {[%clk 00:15:12]} {[%emt 00:00:05]} 4. Bg2 {[%clk
00:15:22]} {[%emt 00:00:01]} O-O {[%clk 00:15:14]} {[%emt 00:00:03]} 5. d3
{[%clk 00:15:21]} {[%emt 00:00:06]} d5 {[%clk 00:15:17]} {[%emt 00:00:01]} 6.
Nd2 {[%clk 00:15:25]} {[%emt 00:00:02]} c5 {[%clk 00:15:21]} {[%emt 00:00:01]}
7. e3 {[%clk 00:15:20]} {[%emt 00:00:11]} Nc6 {[%clk 00:15:23]} {[%emt
00:00:02]} 8. Ne2 {[%clk 00:15:24]} b6 {[%clk 00:15:26]} {[%emt 00:00:02]} 9.
b3 {[%clk 00:15:17]} {[%emt 00:00:12]} Bb7 {[%clk 00:14:44]} {[%emt 00:00:46]}
10. Bb2 {[%clk 00:15:20]} {[%emt 00:00:02]} Qc7 {[%clk 00:14:45]} {[%emt
00:00:03]} 11. g4 {[%clk 00:15:15]} {[%emt 00:00:11]} Rfe8 {[%clk 00:14:44]}
{[%emt 00:00:06]} 12. Ng3 {[%clk 00:15:18]} {[%emt 00:00:02]} Rad8 {[%clk
00:14:46]} {[%emt 00:00:03]} 13. g5 {[%clk 00:15:18]} {[%emt 00:00:05]} Nd7
{[%clk 00:14:36]} {[%emt 00:00:15]} 14. Bxg7 {[%clk 00:15:20]} {[%emt
00:00:03]} Kxg7 {[%clk 00:14:40]} {[%emt 00:00:01]} 15. Bxd5 {[%clk 00:15:22]}
{[%emt 00:00:04]} Qe5 {[%clk 00:14:33]} {[%emt 00:00:12]} 16. Bf3 {[%clk
00:14:42]} {[%emt 00:00:44]} Qxg5 {[%clk 00:14:28]} {[%emt 00:00:11]} 17. h4
{[%clk 00:14:40]} {[%emt 00:00:07]} Qf6 {[%clk 00:14:16]} {[%emt 00:00:16]} 18.
h5 {[%clk 00:14:21]} {[%emt 00:00:24]} Nde5 {[%clk 00:14:10]} {[%emt 00:00:11]}
19. hxg6 {[%clk 00:13:38]} {[%emt 00:00:48]} hxg6 {[%clk 00:14:07]} {[%emt
00:00:08]} 20. Rg1 {[%clk 00:13:07]} {[%emt 00:00:36]} Kf8 {[%clk 00:13:50]}
{[%emt 00:00:22]} 21. Nge4 {[%clk 00:12:22]} {[%emt 00:00:50]} Qe6 {[%clk
00:13:08]} {[%emt 00:00:47]} 22. Ng5 {[%clk 00:11:49]} {[%emt 00:00:39]} Qd6
{[%clk 00:12:21]} {[%emt 00:00:51]} 23. Nde4 {[%clk 00:11:24]} {[%emt
00:00:31]} Qc7 {[%clk 00:12:02]} {[%emt 00:00:24]} 24. Rh1 {[%clk 00:09:53]}
{[%emt 00:01:36]} Kg8 {[%clk 00:11:29]} {[%emt 00:00:36]} 25. Bg2 {[%clk
00:09:38]} {[%emt 00:00:21]} f5 {[%clk 00:10:24]} {[%emt 00:01:10]} 26. Ne6
{[%clk 00:08:31]} {[%emt 00:01:13]} Qd7 {[%clk 00:10:14]} {[%emt 00:00:15]} 27.
N4g5 {[%clk 00:08:24]} {[%emt 00:00:12]} Rc8 {[%clk 00:09:42]} {[%emt
00:00:37]} 28. Rh7 {[%clk 00:07:50]} {[%emt 00:00:38]} Qxe6 {[%clk 00:09:14]}
{[%emt 00:00:33]} 29. Nxe6 {[%clk 00:07:52]} {[%emt 00:00:04]} Kxh7 {[%clk
00:09:17]} {[%emt 00:00:02]} 30. Bh3 {[%clk 00:06:46]} {[%emt 00:01:11]} Nd8
{[%clk 00:08:59]} {[%emt 00:00:23]} 31. Bxf5 {[%clk 00:06:26]} {[%emt
00:00:24]} Nf3+ {[%clk 00:08:56]} {[%emt 00:00:08]} 32. Kf1 {[%clk 00:06:06]}
{[%emt 00:00:24]} gxf5 {[%clk 00:08:59]} {[%emt 00:00:03]} 33. Nf4 {[%clk
00:05:46]} {[%emt 00:00:25]} e5 {[%clk 00:08:40]} {[%emt 00:00:24]} 34. Nh3
{[%clk 00:05:12]} {[%emt 00:00:40]} Ne6 {[%clk 00:08:31]} {[%emt 00:00:14]} 35.
e4 {[%clk 00:04:54]} {[%emt 00:00:22]} fxe4 {[%clk 00:07:54]} {[%emt 00:00:42]}
36. dxe4 {[%clk 00:04:48]} {[%emt 00:00:11]} Bxe4 {[%clk 00:07:34]} {[%emt
00:00:26]} 37. Qd7+ {[%clk 00:04:25]} {[%emt 00:00:28]} Kg6 {[%clk 00:07:33]}
{[%emt 00:00:05]} 38. Ng1 {[%clk 00:04:04]} {[%emt 00:00:27]} Rcd8 {[%clk
00:06:22]} {[%emt 00:01:15]} 39. Qa4 {[%clk 00:03:32]} {[%emt 00:00:38]} Ned4
{[%clk 00:06:14]} {[%emt 00:00:13]} 40. Nxf3 {[%clk 00:03:12]} {[%emt
00:00:25]} Bxf3 {[%clk 00:06:12]} {[%emt 00:00:07]} 41. c3 {[%clk 00:02:50]}
{[%emt 00:00:27]} Rh8 {[%clk 00:06:01]} {[%emt 00:00:15]} 42. Ke1 {[%clk
00:02:37]} {[%emt 00:00:19]} Nc2+ {[%clk 00:05:59]} {[%emt 00:00:06]} 43. Kf1
{[%clk 00:02:39]} {[%emt 00:00:04]} Rh1# {[%clk 00:00:00]} {[%emt 00:00:02]}
0-1

[Event "Open NK Rapid 2025 bord 26-50"]
[Site "Helmond, Netherlands"]
[Date "2025.05.03"]
[Round "9.6"]
[White "Wilming, Auke"]
[Black "Kolijn, David"]
[Result "1-0"]
[TimeControl "15 min +5 sec increment"]
[WhiteFideId "40101096"]
[BlackFideId "1099213"]
[WhiteElo "1962"]
[BlackElo "1812"]

1. e4 {[%clk 00:15:08]} {[%emt 00:00:02]} c5 {[%clk 00:15:09]} {[%emt
00:00:01]} 2. Nf3 {[%clk 00:15:12]} {[%emt 00:00:02]} Nc6 {[%clk 00:15:12]} 3.
d4 {[%clk 00:15:15]} {[%emt 00:00:02]} cxd4 {[%clk 00:15:15]} {[%emt 00:00:01]}
4. Nxd4 {[%clk 00:15:19]} {[%emt 00:00:02]} e5 {[%clk 00:15:19]} {[%emt
00:00:01]} 5. Nb5 {[%clk 00:15:23]} {[%emt 00:00:01]} d6 {[%clk 00:15:22]}
{[%emt 00:00:02]} 6. c4 {[%clk 00:15:27]} Be7 {[%clk 00:15:21]} {[%emt
00:00:06]} 7. Be2 {[%clk 00:15:28]} {[%emt 00:00:05]} f5 {[%clk 00:13:52]}
{[%emt 00:01:33]} 8. exf5 {[%clk 00:15:28]} {[%emt 00:00:05]} Bxf5 {[%clk
00:13:55]} {[%emt 00:00:01]} 9. N1c3 {[%clk 00:15:21]} {[%emt 00:00:12]} a6
{[%clk 00:13:47]} {[%emt 00:00:13]} 10. Na3 {[%clk 00:15:25]} {[%emt 00:00:02]}
Nf6 {[%clk 00:12:38]} {[%emt 00:01:13]} 11. O-O {[%clk 00:15:28]} {[%emt
00:00:03]} O-O {[%clk 00:12:26]} {[%emt 00:00:17]} 12. Bd3 {[%clk 00:14:31]}
{[%emt 00:01:02]} Be6 {[%clk 00:12:07]} {[%emt 00:00:23]} 13. h3 {[%clk
00:13:52]} {[%emt 00:00:45]} Kh8 {[%clk 00:12:05]} {[%emt 00:00:07]} 14. Be3
{[%clk 00:13:54]} {[%emt 00:00:03]} Rc8 {[%clk 00:11:49]} {[%emt 00:00:21]} 15.
Rc1 {[%clk 00:12:58]} {[%emt 00:01:01]} Nb4 {[%clk 00:09:47]} {[%emt 00:02:07]}
16. b3 {[%clk 00:11:56]} {[%emt 00:01:07]} Nxd3 {[%clk 00:09:27]} {[%emt
00:00:25]} 17. Qxd3 {[%clk 00:12:00]} d5 {[%clk 00:09:14]} {[%emt 00:00:18]} 18.
Ncb1 {[%clk 00:11:34]} {[%emt 00:00:31]} d4 {[%clk 00:08:42]} {[%emt 00:00:37]}
19. Bd2 {[%clk 00:10:57]} {[%emt 00:00:42]} e4 {[%clk 00:08:05]} {[%emt
00:00:43]} 20. Qe2 {[%clk 00:10:45]} {[%emt 00:00:16]} Bc5 {[%clk 00:06:02]}
{[%emt 00:02:07]} 21. Bg5 {[%clk 00:10:40]} {[%emt 00:00:11]} d3 {[%clk
00:05:43]} {[%emt 00:00:24]} 22. Qe1 {[%clk 00:10:14]} {[%emt 00:00:31]} Qe7
{[%clk 00:05:19]} {[%emt 00:00:28]} 23. Qa5 {[%clk 00:09:34]} {[%emt 00:00:46]}
Bb4 {[%clk 00:04:49]} {[%emt 00:00:36]} 24. Qe5 {[%clk 00:09:29]} {[%emt
00:00:09]} Bd6 {[%clk 00:03:19]} {[%emt 00:01:35]} 25. Qb2 {[%clk 00:09:25]}
{[%emt 00:00:09]} h6 {[%clk 00:02:10]} {[%emt 00:01:15]} 26. Bd2 {[%clk
00:08:13]} {[%emt 00:01:16]} Rc7 {[%clk 00:00:54]} {[%emt 00:01:21]} 27. b4
{[%clk 00:08:16]} {[%emt 00:00:02]} Bg8 {[%clk 00:00:09]} {[%emt 00:00:50]} 28.
c5 {[%clk 00:08:18]} {[%emt 00:00:03]} Be5 {[%clk 00:00:13]} {[%emt 00:00:02]}
29. Bc3 {[%clk 00:08:15]} {[%emt 00:00:08]} Bf4 {[%clk 00:00:00]} {[%emt
00:00:20]} 1-0

[Event "Open NK Rapid 2025 bord 26-50"]
[Site "Helmond, Netherlands"]
[Date "2025.05.03"]
[Round "9.7"]
[White "Khatniuk, Anastasiia"]
[Black "Darie, Aden"]
[Result "1-0"]
[TimeControl "15 min +5 sec increment"]
[WhiteFideId "14179105"]
[BlackFideId "1094831"]
[WhiteElo "1822"]
[BlackElo "1941"]

1. e4 {[%clk 00:15:08]} {[%emt 00:00:02]} c5 {[%clk 00:15:03]} {[%emt
00:00:06]} 2. Nf3 {[%clk 00:15:11]} {[%emt 00:00:01]} Nc6 {[%clk 00:14:55]}
{[%emt 00:00:13]} 3. Bb5 {[%clk 00:15:13]} {[%emt 00:00:04]} e6 {[%clk
00:14:45]} {[%emt 00:00:15]} 4. O-O {[%clk 00:15:10]} {[%emt 00:00:07]} a6
{[%clk 00:14:40]} {[%emt 00:00:11]} 5. Bxc6 {[%clk 00:14:57]} {[%emt 00:00:18]}
bxc6 {[%clk 00:14:43]} {[%emt 00:00:01]} 6. Re1 {[%clk 00:14:47]} {[%emt
00:00:15]} d5 {[%clk 00:14:12]} {[%emt 00:00:36]} 7. exd5 {[%clk 00:14:37]}
{[%emt 00:00:16]} cxd5 {[%clk 00:14:14]} {[%emt 00:00:03]} 8. d4 {[%clk
00:14:40]} {[%emt 00:00:02]} Nf6 {[%clk 00:14:11]} {[%emt 00:00:08]} 9. Bg5
{[%clk 00:14:34]} {[%emt 00:00:11]} cxd4 {[%clk 00:13:57]} {[%emt 00:00:18]} 10.
Qxd4 {[%clk 00:14:33]} {[%emt 00:00:06]} Be7 {[%clk 00:13:54]} {[%emt
00:00:08]} 11. Ne5 {[%clk 00:14:18]} {[%emt 00:00:21]} Bd7 {[%clk 00:13:16]}
{[%emt 00:00:43]} 12. Nd2 {[%clk 00:14:03]} {[%emt 00:00:20]} O-O {[%clk
00:12:57]} {[%emt 00:00:24]} 13. Ndf3 {[%clk 00:13:42]} {[%emt 00:00:25]} h6
{[%clk 00:12:42]} {[%emt 00:00:20]} 14. Bh4 {[%clk 00:13:43]} {[%emt 00:00:05]}
Ne8 {[%clk 00:11:46]} {[%emt 00:01:01]} 15. Nxd7 {[%clk 00:13:21]} {[%emt
00:00:27]} Qxd7 {[%clk 00:11:34]} {[%emt 00:00:16]} 16. Bxe7 {[%clk 00:13:12]}
{[%emt 00:00:14]} Qxe7 {[%clk 00:11:38]} {[%emt 00:00:02]} 17. Qxd5 {[%clk
00:13:12]} {[%emt 00:00:05]} Nf6 {[%clk 00:11:23]} {[%emt 00:00:20]} 18. Qa5
{[%clk 00:12:58]} {[%emt 00:00:18]} Rfc8 {[%clk 00:10:53]} {[%emt 00:00:35]} 19.
c3 {[%clk 00:12:56]} {[%emt 00:00:07]} Qb7 {[%clk 00:10:55]} {[%emt 00:00:03]}
20. b3 {[%clk 00:12:33]} {[%emt 00:00:29]} Nd5 {[%clk 00:09:30]} {[%emt
00:01:30]} 21. c4 {[%clk 00:12:27]} {[%emt 00:00:11]} Nb4 {[%clk 00:09:28]}
{[%emt 00:00:08]} 22. Rad1 {[%clk 00:12:06]} {[%emt 00:00:25]} Rc7 {[%clk
00:08:50]} {[%emt 00:00:43]} 23. a3 {[%clk 00:10:56]} {[%emt 00:01:14]} Nc6
{[%clk 00:08:51]} {[%emt 00:00:05]} 24. Qc3 {[%clk 00:10:58]} {[%emt 00:00:03]}
a5 {[%clk 00:08:48]} {[%emt 00:00:08]} 25. h3 {[%clk 00:10:13]} {[%emt
00:00:50]} Rb8 {[%clk 00:08:37]} {[%emt 00:00:16]} 26. Re3 {[%clk 00:10:14]}
{[%emt 00:00:04]} Qb6 {[%clk 00:08:19]} {[%emt 00:00:23]} 27. Nd2 {[%clk
00:09:46]} {[%emt 00:00:33]} Ne7 {[%clk 00:08:08]} {[%emt 00:00:17]} 28. Qe5
{[%clk 00:08:59]} {[%emt 00:00:50]} Ng6 {[%clk 00:07:18]} {[%emt 00:00:56]} 29.
Qg3 {[%clk 00:08:50]} {[%emt 00:00:14]} Rd8 {[%clk 00:07:03]} {[%emt 00:00:19]}
30. Rd3 {[%clk 00:08:37]} {[%emt 00:00:18]} Rcd7 {[%clk 00:06:55]} {[%emt
00:00:13]} 31. Ne4 {[%clk 00:08:36]} {[%emt 00:00:06]} Rxd3 {[%clk 00:06:01]}
{[%emt 00:01:00]} 32. Rxd3 {[%clk 00:08:40]} {[%emt 00:00:01]} Rc8 {[%clk
00:05:49]} {[%emt 00:00:17]} 33. Qd6 {[%clk 00:08:02]} {[%emt 00:00:43]} Qb7
{[%clk 00:05:33]} {[%emt 00:00:20]} 34. Qd7 {[%clk 00:07:16]} {[%emt 00:00:51]}
Qb8 {[%clk 00:04:54]} {[%emt 00:00:45]} 35. Nd6 {[%clk 00:07:00]} {[%emt
00:00:21]} Rf8 {[%clk 00:04:55]} {[%emt 00:00:03]} 36. Qb7 {[%clk 00:06:44]}
{[%emt 00:00:21]} Qd8 {[%clk 00:04:40]} {[%emt 00:00:21]} 37. c5 {[%clk
00:06:41]} {[%emt 00:00:08]} Ne5 {[%clk 00:04:43]} {[%emt 00:00:02]} 38. Re3
{[%clk 00:06:41]} {[%emt 00:00:05]} Nd7 {[%clk 00:04:27]} {[%emt 00:00:21]} 39.
b4 {[%clk 00:06:25]} {[%emt 00:00:21]} Nb8 {[%clk 00:03:10]} {[%emt 00:01:22]}
40. Rf3 {[%clk 00:06:09]} {[%emt 00:00:20]} f5 {[%clk 00:03:05]} {[%emt
00:00:11]} 41. Rg3 {[%clk 00:05:52]} {[%emt 00:00:22]} g5 {[%clk 00:03:08]}
{[%emt 00:00:02]} 42. Rd3 {[%clk 00:05:03]} {[%emt 00:00:53]} Qf6 {[%clk
00:02:54]} {[%emt 00:00:20]} 43. Rd1 {[%clk 00:04:58]} {[%emt 00:00:09]} g4
{[%clk 00:02:44]} {[%emt 00:00:16]} 44. hxg4 {[%clk 00:04:47]} {[%emt
00:00:17]} fxg4 {[%clk 00:02:38]} {[%emt 00:00:10]} 45. Ne4 {[%clk 00:04:50]}
{[%emt 00:00:02]} Qe5 {[%clk 00:01:54]} {[%emt 00:00:49]} 46. bxa5 {[%clk
00:04:38]} {[%emt 00:00:17]} Rf7 {[%clk 00:01:36]} {[%emt 00:00:23]} 47. Rd8+
{[%clk 00:03:55]} {[%emt 00:00:47]} Kg7 {[%clk 00:01:40]} {[%emt 00:00:03]} 48.
Qxb8 {[%clk 00:03:57]} {[%emt 00:00:03]} Qxe4 {[%clk 00:01:43]} {[%emt
00:00:01]} 49. Qb2+ {[%clk 00:03:47]} {[%emt 00:00:15]} Kg6 {[%clk 00:01:31]}
{[%emt 00:00:17]} 50. Rd1 {[%clk 00:02:47]} {[%emt 00:01:05]} g3 {[%clk
00:01:21]} {[%emt 00:00:15]} 51. Qb1 {[%clk 00:02:06]} {[%emt 00:00:46]} gxf2+
{[%clk 00:01:24]} {[%emt 00:00:02]} 52. Kf1 {[%clk 00:02:10]} {[%emt 00:00:01]}
Kf5 {[%clk 00:01:00]} {[%emt 00:00:29]} 53. g4+ {[%clk 00:01:41]} {[%emt
00:00:34]} Kf4 {[%clk 00:00:35]} {[%emt 00:00:30]} 54. Qxe4+ {[%clk 00:01:24]}
{[%emt 00:00:22]} Kxe4 {[%clk 00:00:39]} 55. Rd6 {[%clk 00:01:12]} {[%emt
00:00:17]} e5 {[%clk 00:00:21]} {[%emt 00:00:24]} 56. Rd2 {[%clk 00:01:08]}
{[%emt 00:00:08]} Ke3 {[%clk 00:00:24]} {[%emt 00:00:03]} 57. Re2+ {[%clk
00:01:12]} Kd3 {[%clk 00:00:20]} {[%emt 00:00:08]} 58. Rxe5 {[%clk 00:01:14]}
{[%emt 00:00:03]} Ra7 {[%clk 00:00:19]} {[%emt 00:00:06]} 59. c6 {[%clk
00:01:15]} {[%emt 00:00:04]} Kd4 {[%clk 00:00:21]} {[%emt 00:00:03]} 60. Rf5
{[%clk 00:01:19]} {[%emt 00:00:01]} Ke3 {[%clk 00:00:20]} {[%emt 00:00:07]} 61.
Rxf2 {[%clk 00:01:09]} {[%emt 00:00:14]} Rxa5 {[%clk 00:00:24]} {[%emt
00:00:02]} 62. Rc2 {[%clk 00:01:10]} {[%emt 00:00:03]} Ra8 {[%clk 00:00:20]}
{[%emt 00:00:08]} 63. c7 {[%clk 00:01:09]} {[%emt 00:00:07]} Rc8 {[%clk
00:00:17]} {[%emt 00:00:08]} 64. a4 {[%clk 00:01:08]} {[%emt 00:00:06]} Kd4
{[%clk 00:00:09]} {[%emt 00:00:12]} 65. a5 {[%clk 00:01:12]} {[%emt 00:00:02]}
Kd5 {[%clk 00:00:14]} 66. a6 {[%clk 00:01:16]} {[%emt 00:00:01]} Kd6 {[%clk
00:00:18]} 67. a7 {[%clk 00:01:20]} {[%emt 00:00:01]} Kd7 {[%clk 00:00:22]} 68.
Kg2 {[%clk 00:01:18]} {[%emt 00:00:06]} Ra8 {[%clk 00:00:11]} {[%emt 00:00:17]}
69. c8=Q+ {[%clk 00:01:17]} {[%emt 00:00:06]} Rxc8 {[%clk 00:00:14]} {[%emt
00:00:02]} 70. Rxc8 {[%clk 00:01:19]} {[%emt 00:00:03]} 1-0